Cogmind - Beta 13 *** ADVENTURER MODE // 2024.07.20 @ 03:28:50 Player: grimmkin Result: Destroyed by AH-F8Y(R) with Subdweller Beam Cannon Performance ------------- Evolutions (0) 0 Regions Visited (3) 600 Robots Destroyed (15) 75 Value Destroyed (272) 272 Prototype IDs (0) 0 Alien Tech Used (0) 0 Bonus (0) 0 TOTAL SCORE: 947 Bonus ------- None Cogmind --------- Core Integrity 0/250 Matter 300/300 Energy 100/100 System Corruption 0% Temperature Cool (9) Movement Walking (190) Ox1 Location -10/Subcaves Parts ------- > --- POWER (1) -------- (None) > --- PROPULSION (2) --- Carbon-fiber Leg > --- UTILITY (2) ------ Large Storage Unit > --- WEAPON (2) ------- Mining Claw > --- INVENTORY (15) --- Improved Heat Sink High-capacity Matter Pod (200) Light Assault Rifle Peak State ------------ > --- POWER ------------ Ion Engine > --- PROPULSION ------- Light Treads Carbon-fiber Leg > --- UTILITY ---------- Large Storage Unit Light Armor Plating > --- WEAPON ----------- Medium Laser Mining Laser > --- INVENTORY -------- Light Treads Light Treads Light Treads Light Treads Heat Sink High-capacity Matter Pod Small Laser Light Assault Rifle Mining Claw [Rating: 9] Favorites ----------- Power Ion Engine Engine Ion Engine Propulsion Light Treads Treads Light Treads Leg Carbon-fiber Leg Utility Large Storage Unit Storage Large Storage Unit Protection Light Armor Plating Weapon Small Laser Energy Gun Small Laser Ballistic Gun Light Assault Rifle Special Weapon Mining Laser Slashing Weapon Mining Claw Build | -11 -10 -10 -10 ------- Run | Yrd Mat Min Sub Slots Evolved . | . . . . Power . | . . . . Propulsion . | . . . . Utility . | . . . . Weapon . | . . . . Parts Attached 16 | 6 5 4 1 Power 1 | 1 . . . Engine 1 | 1 . . . Core . | . . . . Reactor . | . . . . Propulsion 4 | 2 . 2 . Treads 2 | 2 . . . Leg 2 | . . 2 . Wheel . | . . . . Hover . | . . . . Flight . | . . . . Utility 3 | 1 2 . . Device . | . . . . Storage 2 | 1 1 . . Processor . | . . . . Hackware . | . . . . Protection 1 | . 1 . . Artifact . | . . . . Weapon 8 | 2 3 2 1 Energy Gun 4 | 2 1 1 . Energy Cannon . | . . . . Ballistic Gun 2 | . 1 1 . Ballistic Cannon . | . . . . Launcher . | . . . . Special Weapon 1 | . 1 . . Impact Weapon . | . . . . Slashing Weapon 1 | . . . 1 Piercing Weapon . | . . . . Special Melee Weapon . | . . . . Unidentified Prototypes . | . . . . Parts Lost 6 | . . 2 4 Power 1 | . . . 1 Propulsion 1 | . . . 1 Utility 1 | . . . 1 Weapon 3 | . . 2 1 Highest Loss Streak 3 | . . 2 3 To Critical Strikes . | . . . . Average Slot Usage (%) 94 | . 97 94 84 Engine 13 | . 14 14 11 Treads 12 | . 28 4 . Leg 12 | . . 18 24 Storage 14 | . 14 14 14 Protection 12 | . 12 14 7 Energy Gun 15 | . 19 14 11 Ballistic Gun 6 | . 7 6 3 Special Weapon 3 | . . 7 . Slashing Weapon 1 | . . . 10 Naked Turns . | . . . . Heaviest Build 31 | 12 31 31 31 Greatest Support 40 | 40 40 40 25 Greatest Overweight (x) 2 | . . 2 1 Average Overweight (x) . | . . 1 1 Largest Inventory Capacity 15 | 8 15 15 15 Average Capacity 14 | 7 14 15 15 Most Carried 9 | 4 8 9 3 Average Carried 3 | 1 3 4 3 Final Capacity 15 | 8 15 15 15 Final Carried 8 | 1 8 3 3 Class Distribution -------------------- 100% | Mutant Dominant Class ---------------- Mutant | -10/Materials Mutant | -10/Mines Mutant | -10/Subcaves Resources | -11 -10 -10 -10 ----------- Run | Yrd Mat Min Sub Matter Collected 563 | 172 82 304 5 Remotely . | . . . . Salvage Created 288 | . 128 129 31 Parts 23 | . 15 4 4 Haulers Intercepted . | . . . . Recyclers Shooed . | . . . . Parts Field Recycled . | . . . . Retrieved Matter . | . . . . Parts Self-Destructed 9 | . . . 9 Prevented . | . . . . Kills | -11 -10 -10 -10 ------- Run | Yrd Mat Min Sub Combat Hostiles Destroyed 15 | . 7 6 2 Guns 13 | . 7 4 2 Cannons 1 | . . 1 . Classes Destroyed 2 | . 2 . . Swarmer 11 | . 6 3 2 Grunt 4 | . 1 3 . Best Kill Streak 3 | . 3 3 2 Combat Bots Only 3 | . 3 3 2 Max Kills in Single Turn 1 | . 1 1 1 Gunslinging . | . . . . Exploded . | . . . . Melee . | . . . . Uniques/NPCs Destroyed . | . . . . Combat | -11 -10 -10 -10 -------- Run | Yrd Mat Min Sub Hostile Shots Fired 152 | . 27 49 76 Missed 58 | . 12 17 29 Damage Taken 986 | . 101 333 552 Core 258 | . 19 43 196 Absorbed by Shields . | . . . . Ignored by Resistances 295 | . 31 100 164 Core Remaining (%) 100 | 100 . . . Volleys Fired 45 | . 18 25 2 Largest 2 | . 2 2 1 Hottest 150 | . 80 150 40 Shots Fired 64 | . 32 30 2 Gun 59 | . 32 25 2 Cannon . | . . . . Launcher . | . . . . Special 5 | . . 5 . Kinetic 13 | . 13 . . Thermal 51 | . 19 30 2 Explosive . | . . . . Electromagnetic . | . . . . Robot Hit Streak 11 | . 6 11 1 Robot Miss Streak 4 | . 4 2 1 Penetration Max . | . . . . Secondary Targets . | . . . . Shots Hit Robots 42 | . 17 24 1 Core Hits 23 | . 9 12 2 Critical Kills . | . . . . Critical Parts Destroyed . | . . . . Critical Strikes 2 | . . 2 . Burn 2 | . . 2 . Melee Attacks 3 | . . . 3 Impact . | . . . . Slashing 3 | . . . 3 Piercing . | . . . . Sneak Attacks . | . . . . Combat Hostiles . | . . . . Follow-up Attacks . | . . . . Damage Inflicted 544 | . 190 334 20 Guns 467 | . 185 262 20 Cannons . | . . . . Explosions . | . . . . Melee . | . . . . Ramming 5 | . 5 . . Kinetic 72 | . 72 . . Thermal 467 | . 113 334 20 Explosive . | . . . . Electromagnetic . | . . . . Impact . | . . . . Slashing . | . . . . Piercing . | . . . . Highest Corruption . | . . . . Average Corruption . | . . . . Corruption Purged . | . . . . Corruption Blocked . | . . . . Overload Shots . | . . . . Overflow Damage . | . . . . Projectiles . | . . . . Explosions . | . . . . Melee . | . . . . Knockbacks . | . . . . Impact . | . . . . Kinetic . | . . . . Secondary . | . . . . Self-Inflicted Damage . | . . . . Shots . | . . . . Rammed 1 | . 1 . . Targets Rammed 1 | . 1 . . Kicked . | . . . . Crushed . | . . . . Highest Temperature 211 | . 108 211 190 Average Temperature 70 | . 34 87 117 Received Heat Transfer 565 | . 12 234 319 Siege Activations . | . . . . Robots Corrupted . | . . . . Combat Hostiles . | . . . . Parts Fried . | . . . . Impact Corruptions . | . . . . Robots Melted 1 | . . 1 . Combat Hostiles 1 | . . 1 . Parts Melted 2 | . . 2 . Heat Transferred 1387 | . 286 1051 50 Parts Sabotaged . | . . . . Parts Stolen . | . . . . Parts Stripped . | . . . . Power Chain Reactions . | . . . . Alert | -11 -10 -10 -10 ------- Run | Yrd Mat Min Sub Peak Influence 185 | . 185 162 . Initial . | . . . . Average 60 | . 46 77 . Maximum Alert Level . | . . . . Low Security (%) 100 | 100 100 100 . Level 1 . | . . . . Level 2 . | . . . . Level 3 . | . . . . Level 4 . | . . . . Level 5 . | . . . . High Security . | . . . . Max Security . | . . . . Squads Dispatched 1 | . 1 . . Investigation 1 | . 1 . . Extermination . | . . . . Reinforcement . | . . . . Assault . | . . . . Garrison . | . . . . Intercept . | . . . . Searches Triggered . | . . . . Construction Impeded . | . . . . Haulers Reinforced . | . . . . Active Scanning Responses . | . . . . Cargo Convoy Interrupts . | . . . . Stealth | -11 -10 -10 -10 --------- Run | Yrd Mat Min Sub Distress Signals 1 | . 1 . . Communications Jammed . | . . . . Distress Signals . | . . . . Times Spotted 24 | . 9 10 5 Peak Tracking Total 5 | . 3 4 5 Tactical Retreats 2 | . . 2 . Traps | -11 -10 -10 -10 ------- Run | Yrd Mat Min Sub Traps Triggered . | . . . . Indirectly . | . . . . Trap Hack Attempts . | . . . . Triggered . | . . . . Disarmed . | . . . . Reprogrammed . | . . . . Reused . | . . . . Traps Extracted . | . . . . Installed . | . . . . Triggered . | . . . . Machines | -11 -10 -10 -10 ---------- Run | Yrd Mat Min Sub Machines Disabled . | . . . . Max in Single Turn . | . . . . Machines Repaired . | . . . . Machines Dismantled . | . . . . Machines Sabotaged . | . . . . Overloaded Fab Kills . | . . . . Hacking | -11 -10 -10 -10 --------- Run | Yrd Mat Min Sub Machines Accessed 4 | . 3 1 . Terminals 2 | . 2 . . Fabricators . | . . . . Repair Stations 1 | . 1 . . Recycling Units . | . . . . Scanalyzers . | . . . . Garrison Access . | . . . . Total Hacks 8 | . 7 1 . Successful 3 | . 2 1 . Failed 5 | . 5 . . Catastrophic 2 | . 2 . . Database Lockouts . | . . . . Manual . | . . . . Terminals 5 | . 5 . . Fabricators . | . . . . Repair Stations 2 | . 2 . . Recycling Units . | . . . . Scanalyzers . | . . . . Garrison Access . | . . . . Terminal Hacks 2 | . 1 1 . Open Door 1 | . . 1 . Locate Traps 1 | . 1 . . Fabricator Hacks . | . . . . Repair Station Hacks 1 | . 1 . . Scan Component 1 | . 1 . . Recycling Unit Hacks . | . . . . Scanalyzer . | . . . . Garrison Access Hacks . | . . . . Unauthorized Hacks . | . . . . Terminals . | . . . . Fabricators . | . . . . Repair Stations . | . . . . Recycling Units . | . . . . Scanalyzers . | . . . . Garrison Access . | . . . . Data Cores Recovered . | . . . . Used . | . . . . Hacking Detections 2 | . 2 . . Full Trace Events 1 | . 1 . . Feedback Events . | . . . . Feedback Blocked . | . . . . Robot Schematics Acquired . | . . . . Robots Built . | . . . . Authchips . | . . . . Time . | . . . . Total Robot Build Rating . | . . . . Part Schematics Acquired . | . . . . Parts Built . | . . . . Authchips . | . . . . Time . | . . . . Total Part Build Rating . | . . . . Parts Repaired . | . . . . Time . | . . . . Parts Recycled . | . . . . Recycled Matter . | . . . . Retrieved Matter . | . . . . Retrieved Components . | . . . . Parts Scanalyzed . | . . . . Part Schematics Acquired . | . . . . Parts Damaged . | . . . . Bothacking | -11 -10 -10 -10 ------------ Run | Yrd Mat Min Sub Used RIF Installer . | . . . . Robots Hacked . | . . . . Non-combat . | . . . . Combat . | . . . . Robot Hacks Applied . | . . . . Relay Couplers Released . | . . . . Fabnet Peak Effective % . | . . . . Robots Rewired . | . . . . Allies Hacked . | . . . . Hacks Repelled . | . . . . Allies | -11 -10 -10 -10 -------- Run | Yrd Mat Min Sub Total Allies . | . . . . Largest Group . | . . . . Highest-Rated Group . | . . . . Highest-Rated Ally . | . . . . Total Orders . | . . . . Ally Attacks . | . . . . Total Damage . | . . . . Kills . | . . . . Allies Corrupted . | . . . . Allies Melted . | . . . . Intel | -11 -10 -10 -10 ------- Run | Yrd Mat Min Sub Robot Analysis Total . | . . . . Derelict Logs Recovered 1 | . . . 1 Drone Launches . | . . . . Drone Recoveries . | . . . . Exploration | -11 -10 -10 -10 ------------- Run | Yrd Mat Min Sub Turns Passed 1329 | 81 440 619 189 Spaces Moved 625 | 51 215 267 92 Core 11 | 11 . . . Treads 298 | 40 215 43 . Legs 316 | . . 224 92 Wheels . | . . . . Hover . | . . . . Flight . | . . . . Fastest Speed 50 | 50 160 160 190 Average Speed 181 | 136 160 204 190 Slowest Speed 260 | 160 160 260 190 Overloaded Moves . | . . . . Propulsion Burnouts . | . . . . Robots Hopped . | . . . . Cave-ins Triggered . | . . . . Exploration Rate (%) 29 | 5 47 54 10 Regions Visited 3 Branch Regions 2 Pre-discovered Areas . | . . . . Known Exits Taken . | . . . . Unknown Exits Taken 3 | 1 1 1 . Scrap Searched . | . . . . Spaces Dug . | . . . . Terrain Destroyed 2 | . . 2 . Melee . | . . . . Projectile 2 | . . 2 . AOE . | . . . . Terrain Rammed . | . . . . Walls Destroyed . | . . . . Machines Disabled . | . . . . Actions | -11 -10 -10 -10 --------- Run | Yrd Mat Min Sub Total 746 | 63 281 304 98 Wait 29 | . 29 . . Move 622 | 50 214 266 92 Hop . | . . . . Pick Up 21 | 7 11 3 . Fast Attach . | . . . . Attach 10 | 6 1 3 . Detach . | . . . . Swap 6 | . 4 1 1 Drop 9 | . 3 6 . Fire 45 | . 18 25 2 Melee 3 | . . . 3 Ram . | . . . . Kick . | . . . . Crush 1 | . 1 . . Escape Stasis . | . . . . Rewire . | . . . . Trap . | . . . . Miscellaneous . | . . . . Route ------- -11/Scrapyard -10/Materials -10/Mines -10/Subcaves (discovered 1 exit: Rec) History --------- Turn | Location | Event 7 | -11/Scrapyard | Discovered new exit (range 16) 82 | -11/Scrapyard | Entered Materials 302 | -10/Materials | Build established: Mutant 360 | -10/Materials | Discovered new exit (range 13) 522 | -10/Materials | Entered Mines 606 | -10/Mines | Met a Derelict who couldn't figure out how to use a Trap Extractor 1121 | -10/Mines | Assembled infested the area 1124 | -10/Mines | Discovered new exit (range 11) 1141 | -10/Mines | Entered Subcaves 1159 | -10/Subcaves | Identified exit to Recycling 1279 | -10/Subcaves | Core integrity fell below 50% 1325 | -10/Subcaves | Core integrity fell below 20% 1330 | -10/Subcaves | Destroyed by AH-F8Y(R) with Subdweller Beam Cannon Last Messages --------------- 01121_ ALERT: Infestation in the mines, dispatching Demolisher response squad. 01124_ EXIT=FOUND 01139_ T-07 Excavator is excavating. LOCATION=UNKNOWN AMBIENT_HEAT=-10 GOAL=ESCAPE 01159_ Acquired derelict log, extracted data. 01245_ Lgt. Armor Plating destroyed. 01272_ S-10 Pest suffers critical hit (Destroy). 01274_ S-10 Pest destroyed. 01277_ Acquired 5 matter. 01278_ Flight Unit fries itself beyond repair. 01280_ Aluminum Leg destroyed. 01283_ Subatomizers dissect the Flight Unit. 01284_ Flight Unit fries itself beyond repair. 01302_ Critical hit (Meltdown: +220). 01305_ Sml. Laser destroyed. 01306_ Ion Engine destroyed. Map ----- +----------------------------------------------------+ | ?????????????????# ?# ## ### # ?? | | ?????????????????# ## ### ###? | | ?????????????????#### ### #? | | ????????????????????## ### # ## | | ?????????????????##### #####?## # | | ?????????????????# #??????### | | ?????????????????# #????????## # | | ?????????????????# #?????????# ### | | ?????????????????# ## #?????????#### ### | | ?????????????????########## #????????????#### | | ??????????????????????????###???????????????# | | ???????????????????????>??????????###???????## | | ???????????????????????????????#### ##???????# | | ???????????????????????????????# ##??###### | | ??????????????????????????????## #?## #?# | | ?????????????????????????????## #?# ### | | ?????????????????????????????# ### %## | | ?????????????????????????????## "# % % | | ??????????????????????????????## "" "" | | ???????????????????????????????## " ""##"" | | ????????????????????????????????# " " "#?#" | | ????????????????????????????????# #####??" | | ????????????????????????############# #??????" | | ??????????????????????### # # # ###????? | | ??????????????????????#;; "" #????? | | ??????????????????????#; @ R """#????? | | ???????????????? # ## ""#????? | | ????????????# ## ########## #????? | | ??????????? ???#####???????? #????? | | ??????????? ?????????????????? """???? | | ???????????? ???????????????????? """ ??? | | ??????????????????????????????????# """ "??? | | ???????????????????????????????????###### """???? | | ?????????????????????????????????????????# ?????? | | ???????????????????????????????????????????#?????? | | ?????????????????????????????????????????????????? | | ?????????????????????????????????????????????????? | | ?????????????????????????????????????????????????? | | ?????????????????????????????????????????????????? | | ?????????????????????????????????????????????????? | | ?????????????????????????????????????????????????? | | ?????????????????????????????????????????????????? | | ?????????????????????????????????????????????????? | | ?????????????????????????????????????????????????? | | ?????????????????????????????????????????????????? | | ?????????????????????????????????????????????????? | | ?????????????????????????????????????????????????? | | ?????????????????????????????????????????????????? | | ?????????????????????????????????????????????????? | | | +----------------------------------------------------+ Best States ------------- Heat Dissipation 25 Energy Generation 10 Energy Capacity 250 Matter Stores 300 Matter Capacity 300 Sight Range 16 Terrain Scan Density 10 Armor Coverage 150 Resistance: KI 20 Resistance: TH 20 Resistance: EX 20 Resistance: EM 20 Resistance: I 20 Resistance: S 20 Resistance: P 20 Evasion (%) 50 Recoil Reduction 2 Offensive Hacking 10 Item Schematics ----------------- None Robot Schematics ------------------ None Fabricated ------------ Nothing Alien Tech Used ----------------- None Achievements -------------- None Challenges ------------ None Game ------ Seed MultitargetingSwarmMantle Manual? 0 Play Time 00:10:44 Cumulative 8.1 hours Start 2024.07.20 @ 03:15:39 End 2024.07.20 @ 03:28:50 Sessions 1 Manual Loads 0 Difficulty Adventurer Special Mode None Game No. 12 Rogue 0 Adventurer 12 Explorer 0 Win Type - Total 0 Types 0/0/0/0/0/0/0/0/0 Lore% 16 Gallery% 19 Achievement% 16 Wizard Run 0 Options --------- Layout 1 ASCII 0 Keyboard 0 Movement Mouse Keybinds 0 Fullscreen 1 Font 24/Smallcaps Map View 50x35 Zoom Use 0% Tactical HUD 1 Map Filters NONE Filters NONE Steam 1 RUN: b2e98c2d-cdf8-4712-aa55-0c8ee419dd50